fUST/lending_fUST_20250628
["ID","MTS","AMOUNT","RATE_DAILY","PERIOD"]
[368298487,1751100637092,-460.0,0.00019452,2]
[368298488,1751100637102,-460.0,0.00019452,2]
[368298489,1751100637111,-460.0,0.00019452,2]
[368298490,1751100637120,-460.0,0.00019452,2]
[368298491,1751100637130,-460.0,0.00019452,2]
[368298492,1751100637139,-738.23,0.00019452,2]
[368298493,1751100637148,-460.0,0.00019452,2]
[368298494,1751100637157,-460.0,0.00019452,2]
[368298495,1751100637167,-563.92,0.00019452,2]
[368298496,1751100637176,-460.0,0.00019452,2]
[368298497,1751100637185,-503.69,0.00019452,2]
[368298498,1751100637195,-711.07,0.00019452,2]
[368298499,1751100637204,-868.94,0.00019452,2]
[368298500,1751100637213,-460.0,0.00019452,2]
[368298501,1751100637222,-3105.15,0.00019452,2]
[368298502,1751100637231,-518.0,0.00019452,2]
[368298503,1751100637240,-556.19,0.00019452,2]
[368298504,1751100637250,-460.0,0.00019452,2]
[368298505,1751100637259,-1208.1,0.00019452,2]
[368298506,1751100637268,-3835.4,0.00019452,2]
[368298507,1751100637278,-460.0,0.00019452,2]
[368298508,1751100637287,-460.0,0.00019452,2]
[368298509,1751100637296,-3094.67,0.00019452,2]
[368298510,1751100637306,-460.0,0.00019452,2]
[368298511,1751100637315,-460.0,0.00019452,2]
[368298512,1751100637324,-750.08,0.00019452,2]
[368298513,1751100637334,-461.8078106,0.00019452,2]
[368298514,1751100637343,-460.0,0.00019452,2]
[368298515,1751100637352,-590.21,0.00019452,2]
[368298516,1751100637362,-2380.9,0.00019452,2]
[368298517,1751100637371,-4278.54,0.00019452,2]
[368298518,1751100637381,-569.58,0.00019452,2]
[368298519,1751100637391,-587.62,0.00019452,2]
[368298520,1751100637400,-460.0,0.00019452,2]
[368298521,1751100637411,-2589.18,0.00019452,2]
[368298522,1751100637420,-460.0,0.00019452,2]
[368298523,1751100637430,-1943.91,0.00019452,2]
[368298524,1751100637439,-460.0,0.00019452,2]
[368298526,1751100637449,-518.96,0.00019452,2]
[368298527,1751100637458,-460.0,0.00019452,2]
[368298528,1751100637467,-1351.92,0.00019452,2]
[368298529,1751100637476,-436.1288141,0.00019452,2]
[368298530,1751100637486,-1275.78,0.00019452,2]
[368298531,1751100637495,-460.0,0.00019452,2]
[368298532,1751100637504,-460.0,0.00019452,2]
[368298533,1751100637514,-681.64,0.00019452,2]
[368298534,1751100637523,-460.0,0.00019452,2]
[368298535,1751100637532,-460.0,0.00019452,2]
[368298536,1751100637541,-1887.23,0.00019452,2]
[368298537,1751100637550,-394.04909701,0.00019452,2]
[368298538,1751100637560,-460.0,0.00019452,2]
[368298539,1751100637569,-6146.34,0.00019452,2]
[368298540,1751100637578,-699.47,0.00019452,2]
[368298541,1751100637587,-460.0,0.00019452,2]
[368298542,1751100637596,-460.0,0.00019452,2]
[368298543,1751100637609,-602.11,0.00019452,2]
[368298544,1751100637618,-460.0,0.00019452,2]
[368298545,1751100637627,-540.0,0.00019452,2]
[368298546,1751100637636,-797.62,0.00019452,2]
[368298547,1751100637646,-460.0,0.00019452,2]
[368298548,1751100637655,-460.0,0.00019452,2]
[368298549,1751100637666,-937.19,0.00019452,2]
[368298551,1751100637675,-460.0,0.00019452,2]
[368298552,1751100637684,-849.38,0.00019452,2]
[368298554,1751100637693,-460.0,0.00019452,2]
[368298555,1751100637702,-460.0,0.00019452,2]
[368298556,1751100637711,-460.0,0.00019452,2]
[368298557,1751100637722,-460.0,0.00019452,2]
[368298558,1751100637733,-460.0,0.00019452,2]
[368298559,1751100637743,-460.0,0.00019452,2]
[368298560,1751100637752,-160.0,0.00019485,2]
[368298562,1751100637762,-160.0,0.00019485,2]
[368298563,1751100637771,-200.65524705,0.00019485,2]
[368298564,1751100637781,-160.0,0.00019485,2]
[368298565,1751100637790,-500.0,0.00019485,2]
[368298566,1751100637801,-501.98718022,0.00019492,2]
[368298567,1751100637810,-500.64573783,0.00019492,2]
[368298568,1751100637820,-500.0,0.00019492,2]
[368298569,1751100637829,-500.66606507,0.00019492,2]
[368298570,1751100637839,-500.0,0.00019492,2]
[368298571,1751100637848,-610.27674679,0.00019492,2]
[368298572,1751100637857,-503.15955345,0.00019492,2]
[368298573,1751100637868,-500.0,0.00019492,2]
[368298574,1751100637877,-566.26447735,0.00019492,2]
[368298575,1751100637887,-500.0,0.00019535,2]
[368298576,1751100637896,-507.17559437,0.00019535,2]
[368298577,1751100637905,-501.80174788,0.00019535,2]
[368298578,1751100637914,-500.0,0.00019535,2]
[368298579,1751100637923,-160.0,0.00019535,2]
[368298580,1751100637932,-500.0,0.00019535,2]
[368298581,1751100637941,-1397.0,0.00019574,2]
[368298582,1751100637951,-2400.32109275,0.00019611,2]
[368298583,1751100637960,-1245.39750823,0.00019629,2]
[368298584,1751100637970,-500.0,0.00019703,2]
[368298585,1751100637979,-501.169435,0.00019703,2]
[368298586,1751100637989,-264.30474659,0.00019703,2]
[368298587,1751100637999,-1000.0,0.00019721,2]
[368298588,1751100638008,-425.142319,0.00019721,2]
[368298589,1751100638018,-896.67202616,0.00019721,2]
[368298590,1751100638028,-1000.0,0.00019721,2]
[368298591,1751100638037,-1000.0,0.00019721,2]
[368298592,1751100638046,-500.0,0.00019722,2]
[368298593,1751100638055,-318.69058421,0.00019722,2]
[368298594,1751100638065,-503.52306527,0.00019723,2]
[368298595,1751100638074,-557.05344312,0.00019726,2]
[368298596,1751100638083,-460.0,0.00019726,2]
[368298597,1751100638093,-460.0,0.00019726,2]
[368298598,1751100638102,-460.0,0.00019726,2]
[368298599,1751100638112,-460.0,0.00019726,2]
[368298600,1751100638121,-371.67521175,0.00019726,2]
[368298601,1751100638131,-460.0,0.00019726,2]
[368298602,1751100638140,-460.0,0.00019726,2]
[368298603,1751100638150,-210.613945,0.00019726,2]
[368298604,1751100638159,-460.0,0.00019726,2]
[368298605,1751100638169,-460.0,0.00019726,2]
[368298606,1751100638179,-460.0,0.00019726,2]
[368298607,1751100638188,-460.0,0.00019726,2]
[368298608,1751100638197,-460.0,0.00019726,2]
[368298609,1751100638206,-460.0,0.00019726,2]
[368298610,1751100638216,-460.0,0.00019726,2]
[368298611,1751100638226,-460.0,0.00019726,2]
[368298612,1751100638235,-1386.5,0.00019726,2]
[368298613,1751100638245,-460.0,0.00019726,2]
[368298614,1751100638254,-460.0,0.00019726,2]
[368298615,1751100638263,-460.0,0.00019726,2]
[368298616,1751100638272,-536.56,0.00019726,2]
[368298617,1751100638281,-460.0,0.00019726,2]
[368298618,1751100638291,-460.0,0.00019726,2]
[368298619,1751100638300,-510.75801331,0.00019726,2]
[368298620,1751100638310,-460.0,0.00019726,2]
[368298621,1751100638319,-460.0,0.00019726,2]
[368298622,1751100638328,-591.39,0.00019726,2]
[368298623,1751100638337,-460.0,0.00019726,2]
[368298624,1751100638346,-460.0,0.00019726,2]
[368298625,1751100638355,-460.0,0.00019726,2]
[368298626,1751100638365,-460.0,0.00019726,2]
[368298627,1751100638374,-977.48,0.00019726,2]
[368298628,1751100638384,-460.0,0.00019726,2]
[368298629,1751100638394,-460.0,0.00019726,2]
[368298630,1751100638403,-460.0,0.00019726,2]
[368298631,1751100638412,-460.0,0.00019726,2]
[368298632,1751100638423,-460.0,0.00019726,2]
[368298633,1751100638433,-392.04529672,0.00019726,2]
[368298634,1751100638443,-336.27,0.00019726,2]
[368298635,1751100638453,-460.0,0.00019726,2]
[368298636,1751100638462,-320.82,0.00019726,2]
[368298637,1751100638471,-476.08610335,0.00019726,2]
[368298638,1751100638481,-460.0,0.00019726,2]
[368298639,1751100638490,-583.06005202,0.00019726,2]
[368298640,1751100638500,-1544.88,0.00019726,2]
[368298641,1751100638510,-460.0,0.00019726,2]
[368298642,1751100638520,-1093.87,0.00019726,2]
[368298643,1751100638529,-1697.86,0.00019726,2]
[368298644,1751100638539,-460.0,0.00019726,2]
[368298645,1751100638548,-460.0,0.00019726,2]
[368298646,1751100638557,-1747.34,0.00019726,2]
[368298647,1751100638566,-460.0,0.00019726,2]
[368298648,1751100638575,-460.0,0.00019726,2]
[368298649,1751100638585,-460.0,0.00019726,2]
[368298650,1751100638593,-1159.51,0.00019726,2]
[368298651,1751100638602,-862.57,0.00019726,2]
[368298652,1751100638612,-460.0,0.00019726,2]
[368298653,1751100638622,-460.0,0.00019726,2]
[368298654,1751100638631,-461.77,0.00019726,2]
[368298655,1751100638640,-3084.43,0.00019726,2]
[368298656,1751100638650,-2476.82,0.00019726,2]
[368298657,1751100638659,-460.0,0.00019726,2]
[368298658,1751100638668,-1223.39,0.00019726,2]
[368298659,1751100638677,-411.02,0.00019726,2]
[368298660,1751100638687,-460.0,0.00019726,2]
[368298661,1751100638696,-739.08,0.00019726,2]
[368298662,1751100638705,-656.69,0.00019726,2]
[368298663,1751100638714,-2386.21,0.00019726,2]
[368298664,1751100638727,-746.77,0.00019726,2]
[368298665,1751100638736,-460.0,0.00019726,2]
[368298666,1751100638746,-460.0,0.00019726,2]
[368298667,1751100638755,-313.12360558,0.00019726,2]
[368298668,1751100638764,-460.0,0.00019726,2]
[368298669,1751100638774,-738.23,0.00019726,2]
[368298670,1751100638783,-460.0,0.00019726,2]
[368298671,1751100638792,-460.0,0.00019726,2]
[368298672,1751100638802,-225.9,0.00019726,2]
[368298673,1751100638811,-563.92,0.00019726,2]
[368298674,1751100638820,-460.0,0.00019726,2]
[368298675,1751100638829,-503.69,0.00019726,2]
[368298676,1751100638838,-711.07,0.00019726,2]
[368298677,1751100638847,-868.94,0.00019726,2]
[368298678,1751100638856,-460.0,0.00019726,2]
[368298679,1751100638865,-3105.15,0.00019726,2]
[368298680,1751100638874,-518.0,0.00019726,2]
[368298681,1751100638885,-556.19,0.00019726,2]
[368298682,1751100638894,-460.0,0.00019726,2]
[368298683,1751100638904,-1208.1,0.00019726,2]
[368298684,1751100638913,-3835.4,0.00019726,2]
[368298685,1751100638922,-460.0,0.00019726,2]
[368298686,1751100638931,-3094.67,0.00019726,2]
[368298687,1751100638940,-460.0,0.00019726,2]
[368298688,1751100638950,-460.0,0.00019726,2]
[368298689,1751100638960,-750.08,0.00019726,2]
[368298690,1751100638970,-460.0,0.00019726,2]
[368298691,1751100638980,-590.21,0.00019726,2]
[368298692,1751100638990,-2380.9,0.00019726,2]
[368298693,1751100639000,-4278.54,0.00019726,2]
[368298694,1751100639010,-569.58,0.00019726,2]
[368298695,1751100639019,-587.62,0.00019726,2]
[368298696,1751100639028,-266.6,0.00019726,2]
[368298697,1751100639039,-2589.18,0.00019726,2]
[368298698,1751100639048,-460.0,0.00019726,2]
[368298699,1751100639057,-1943.91,0.00019726,2]
[368298700,1751100639067,-460.0,0.00019726,2]
[368298701,1751100639076,-518.96,0.00019726,2]
[368298702,1751100639085,-465.7225414,0.00019726,2]
[368298703,1751100639094,-1351.92,0.00019726,2]
[368298704,1751100639104,-1275.78,0.00019726,2]
[368298705,1751100639113,-460.0,0.00019726,2]
[368298706,1751100639123,-460.0,0.00019726,2]
[368298707,1751100639133,-681.64,0.00019726,2]
[368298708,1751100639143,-460.0,0.00019726,2]
[368298709,1751100639152,-460.0,0.00019726,2]
[368298710,1751100639162,-1887.23,0.00019726,2]
[368298711,1751100639171,-6146.34,0.00019726,2]
[368298712,1751100639181,-699.47,0.00019726,2]
[368298713,1751100639190,-460.0,0.00019726,2]
[368298714,1751100639199,-186.83,0.00019726,2]
[368298715,1751100639210,-602.11,0.00019726,2]
[368298716,1751100639219,-460.0,0.00019726,2]
[368298717,1751100639228,-797.62,0.00019726,2]
[368298718,1751100639237,-460.0,0.00019726,2]
[368298719,1751100639246,-460.0,0.00019726,2]
[368298720,1751100639256,-937.19,0.00019726,2]
[368298721,1751100639265,-436.82925284,0.00019726,2]
[368298722,1751100639274,-849.38,0.00019726,2]
[368298723,1751100639284,-460.0,0.00019726,2]
[368298724,1751100639293,-460.0,0.00019726,2]
[368298725,1751100639302,-325.7,0.00019726,2]
[368298726,1751100639311,-460.0,0.00019726,2]
[368298727,1751100639321,-460.0,0.00019726,2]
[368298728,1751100639329,-460.0,0.00019726,2]
[368298729,1751100639338,-274.50680258,0.00019727,2]
[368298730,1751100639348,-500.0,0.00019729,2]
[368298731,1751100639357,-500.0,0.00019729,2]
[368298732,1751100639366,-500.0,0.00019729,2]
[368298733,1751100639375,-500.0,0.00019737,2]
[368298734,1751100639384,-500.7323619,0.00019757,2]
[368298735,1751100639393,-1397.0,0.00019767,2]
[368298736,1751100639402,-2400.32109275,0.00019801,2]
[368298737,1751100639412,-420.0,0.00019826,2]
[368298738,1751100639422,-997.0,0.000199,2]
[368298739,1751100639433,-10618.22147266,0.000199,2]
[368298740,1751100639443,-1397.0,0.0001996,2]
[368298741,1751100639454,-500.68333306,0.00019967,2]
[368298742,1751100639463,-366.1706175,0.00019973,2]
[368298743,1751100639472,-580.0,0.0002,2]
[368298744,1751100639482,-460.0,0.0002,2]
[368298746,1751100639601,-161.98311542,0.0002,2]
[368298747,1751100639611,-460.0,0.0002,2]
[368298749,1751100639621,-460.0,0.0002,2]
[368298750,1751100639630,-571.65619555,0.0002,2]
[368298751,1751100639640,-460.0,0.0002,2]
[368298752,1751100639649,-460.0,0.0002,2]
[368298753,1751100639659,-460.0,0.0002,2]
[368298754,1751100639668,-460.0,0.0002,2]
[368298755,1751100639677,-573.35860768,0.0002,2]
[368298756,1751100639686,-460.0,0.0002,2]
[368298757,1751100639695,-1386.5,0.0002,2]
[368298758,1751100639705,-460.0,0.0002,2]
[368298759,1751100639714,-460.0,0.0002,2]
[368298760,1751100639725,-460.0,0.0002,2]
[368298761,1751100639738,-460.0,0.0002,2]
[368298762,1751100639748,-460.0,0.0002,2]
[368298763,1751100639757,-591.39,0.0002,2]
[368298764,1751100639766,-514.89740137,0.0002,2]
[368298765,1751100639775,-460.0,0.0002,2]
[368298766,1751100639785,-460.0,0.0002,2]
[368298767,1751100639794,-460.0,0.0002,2]
[368298768,1751100639803,-977.48,0.0002,2]
[368298769,1751100639814,-350.36,0.0002,2]
[368298770,1751100639824,-460.0,0.0002,2]
[368298771,1751100639833,-460.0,0.0002,2]
[368298772,1751100639842,-460.0,0.0002,2]
[368298773,1751100639851,-460.0,0.0002,2]
[368298774,1751100639861,-300.0,0.0002,2]
[368298775,1751100639870,-460.0,0.0002,2]
[368298776,1751100639879,-1544.88,0.0002,2]
[368298777,1751100639888,-460.0,0.0002,2]
[368298778,1751100639897,-1093.87,0.0002,2]
[368298779,1751100639906,-1697.86,0.0002,2]
[368298780,1751100639915,-460.0,0.0002,2]
[368298781,1751100639923,-460.0,0.0002,2]
[368298782,1751100639932,-1747.34,0.0002,2]
[368298783,1751100639941,-189.0572045,0.0002,2]
[368298784,1751100639950,-460.0,0.0002,2]
[368298785,1751100639959,-460.0,0.0002,2]
[368298786,1751100639969,-1159.51,0.0002,2]
[368298787,1751100639978,-862.57,0.0002,2]
[368298788,1751100639987,-460.0,0.0002,2]
[368298789,1751100639996,-460.0,0.0002,2]
[368298790,1751100640005,-461.77,0.0002,2]
[368298791,1751100640014,-3084.43,0.0002,2]
[368298792,1751100640023,-2476.82,0.0002,2]
[368298793,1751100640032,-460.0,0.0002,2]
[368298794,1751100640042,-1223.39,0.0002,2]
[368298795,1751100640051,-460.0,0.0002,2]
[368298796,1751100640060,-739.08,0.0002,2]
[368298797,1751100640069,-656.69,0.0002,2]
[368298798,1751100640078,-2386.21,0.0002,2]
[368298799,1751100640086,-746.77,0.0002,2]
[368298800,1751100640096,-362.13523528,0.0002,2]
[368298801,1751100640104,-460.0,0.0002,2]
[368298802,1751100640114,-196.29499146,0.0002,2]
[368298803,1751100640122,-460.0,0.0002,2]
[368298804,1751100640132,-738.23,0.0002,2]
[368298805,1751100640141,-460.0,0.0002,2]
[368298806,1751100640150,-460.0,0.0002,2]
[368298807,1751100640160,-460.0,0.0002,2]
[368298808,1751100640170,-563.92,0.0002,2]
[368298809,1751100640179,-503.69,0.0002,2]
[368298810,1751100640189,-711.07,0.0002,2]
[368298811,1751100640198,-868.94,0.0002,2]
[368298812,1751100640207,-607.23611252,0.0002,2]
[368298813,1751100640217,-6894.0,0.0002,2]
[368298814,1751100640226,-3105.15,0.0002,2]
[368298815,1751100640235,-518.0,0.0002,2]
[368298816,1751100640244,-556.19,0.0002,2]
[368298817,1751100640254,-460.0,0.0002,2]
[368298819,1751100640263,-1208.1,0.0002,2]
[368298820,1751100640273,-3835.4,0.0002,2]
[368298821,1751100640283,-160.0,0.0002,3]
[368298823,1751100640292,-460.0,0.0002,2]
[368298824,1751100640302,-3094.67,0.0002,2]
[368298825,1751100640312,-460.0,0.0002,2]
[368298827,1751100640321,-460.0,0.0002,2]
[368298829,1751100640330,-750.08,0.0002,2]
[368298830,1751100640340,-590.21,0.0002,2]
[368298831,1751100640349,-2380.9,0.0002,2]
[368298832,1751100640358,-460.0,0.0002,2]
[368298833,1751100640368,-4278.54,0.0002,2]
[368298834,1751100640377,-569.58,0.0002,2]
[368298835,1751100640386,-587.62,0.0002,2]
[368298836,1751100640395,-2589.18,0.0002,2]
[368298837,1751100640405,-460.0,0.0002,2]
[368298838,1751100640414,-1943.91,0.0002,2]
[368298839,1751100640423,-460.0,0.0002,2]
[368298840,1751100640432,-518.96,0.0002,2]
[368298841,1751100640441,-1351.92,0.0002,2]
[368298842,1751100640450,-1275.78,0.0002,2]
[368298843,1751100640460,-460.0,0.0002,2]
[368298844,1751100640470,-460.0,0.0002,2]
[368298845,1751100640479,-681.64,0.0002,2]
[368298846,1751100640488,-500.0,0.0002,2]
[368298847,1751100640498,-1887.23,0.0002,2]
[368298848,1751100640508,-460.0,0.0002,2]
[368298849,1751100640517,-6146.34,0.0002,2]
[368298850,1751100640526,-699.47,0.0002,2]
[368298851,1751100640536,-460.0,0.0002,2]
[368298852,1751100640546,-602.11,0.0002,2]
[368298853,1751100640555,-460.0,0.0002,2]
[368298854,1751100640564,-460.0,0.0002,2]
[368298855,1751100640574,-797.62,0.0002,2]
[368298856,1751100640583,-460.0,0.0002,2]
[368298857,1751100640594,-937.19,0.0002,2]
[368298858,1751100640603,-849.38,0.0002,2]
[368298859,1751100640614,-460.0,0.0002,2]
[368298860,1751100640623,-460.0,0.0002,2]
[368298861,1751100640633,-162.54,0.0002,2]
[368298862,1751100640643,-170.23712706,0.0002,2]
[368298863,1751100640653,-460.0,0.0002,2]
[368298864,1751100640662,-460.0,0.0002,2]
[368298865,1751100640672,-517.77986984,0.00020015,2]
[368298866,1751100640681,-1000.0,0.00020033,2]
[368298867,1751100640690,-318.09057501,0.0002004,2]
[368298868,1751100640699,-500.0,0.0002004,2]
[368298869,1751100640710,-844.99299035,0.00020052,2]
[368298870,1751100640719,-1000.0,0.00020083,2]
[368298871,1751100640731,-1000.0,0.00020083,2]
[368298872,1751100640741,-1000.0,0.00020083,2]
[368298873,1751100640750,-997.0,0.0002009,2]
[368298874,1751100640759,-393.52542513,0.00020095,2]
[368298875,1751100640768,-10618.2214724,0.00020107,2]
[368298876,1751100640777,-422.0,0.00020163,2]
[368298877,1751100640786,-1397.0,0.00020165,2]
[368298878,1751100640795,-847.18566335,0.00020174,2]
[368298879,1751100640804,-160.0,0.00020174,2]
[368298880,1751100640814,-160.0,0.00020174,2]
[368298881,1751100640823,-160.0,0.00020174,2]
[368298882,1751100640834,-230.28494567,0.00020174,2]
[368298883,1751100640844,-160.0,0.00020174,2]
[368298884,1751100640853,-160.0,0.00020174,2]
[368298885,1751100640863,-214.95397287,0.00020174,2]
[368298886,1751100640872,-160.0,0.00020174,2]
[368298887,1751100640881,-213.78848551,0.00020174,2]
[368298888,1751100640891,-160.0,0.00020174,2]
[368298889,1751100640900,-12564.78152626,0.00020174,2]
[368298890,1751100640909,-837.06984471,0.00020174,2]
[368298891,1751100640919,-197.389886,0.00020175,2]
[368298892,1751100640928,-151.0,0.00020175,2]
[368298893,1751100640937,-160.0,0.00020176,2]
[368298894,1751100640946,-160.0,0.00020176,2]
[368298895,1751100640955,-1245.39750823,0.0002018,2]
[368298896,1751100640964,-319.913118,0.00020187,2]
[368298897,1751100640974,-151.0,0.000202,4]
[368298898,1751100640983,-2400.32109275,0.00020236,2]
[368298899,1751100640993,-431.40476906,0.0002024,2]
[368298900,1751100641003,-502.56257872,0.00020268,2]
[368298901,1751100641013,-1500.0,0.00020268,2]
[368298902,1751100641023,-1500.0,0.00020268,2]
[368298903,1751100641033,-1000.0,0.0002027,2]
[368298904,1751100641043,-395.40342881,0.00020273,2]
[368298905,1751100641052,-213.02593074,0.00020273,2]
[368298906,1751100641061,-460.0,0.00020273,2]
[368298907,1751100641071,-460.0,0.00020273,2]
[368298908,1751100641080,-460.0,0.00020273,2]
[368298909,1751100641089,-460.0,0.00020273,2]
[368298910,1751100641099,-460.0,0.00020273,2]
[368298911,1751100641109,-460.0,0.00020273,2]
[368298912,1751100641118,-1386.5,0.00020273,2]
[368298913,1751100641127,-340.53734078,0.00020273,2]
[368298914,1751100641137,-460.0,0.00020273,2]
[368298915,1751100641146,-460.0,0.00020273,2]
[368298916,1751100641155,-460.0,0.00020273,2]
[368298917,1751100641164,-591.39,0.00020273,2]
[368298918,1751100641173,-460.0,0.00020273,2]
[368298919,1751100641183,-460.0,0.00020273,2]
[368298920,1751100641192,-460.0,0.00020273,2]
[368298921,1751100641201,-977.48,0.00020273,2]
[368298922,1751100641211,-460.0,0.00020273,2]
[368298923,1751100641220,-460.0,0.00020273,2]
[368298924,1751100641229,-566.27505541,0.00020273,2]
[368298925,1751100641239,-460.0,0.00020273,2]
[368298926,1751100641248,-1544.88,0.00020273,2]
[368298927,1751100641258,-1093.87,0.00020273,2]
[368298928,1751100641267,-151.0,0.00020273,2]
[368298929,1751100641276,-1697.86,0.00020273,2]
[368298930,1751100641287,-460.0,0.00020273,2]
[368298931,1751100641297,-1747.34,0.00020273,2]
[368298932,1751100641306,-322.4083037,0.00020273,2]
[368298933,1751100641315,-460.0,0.00020273,2]
[368298934,1751100641325,-1159.51,0.00020273,2]
[368298935,1751100641334,-151.0,0.00020273,2]
[368298936,1751100641343,-862.57,0.00020273,2]
[368298937,1751100641352,-460.0,0.00020273,2]
[368298938,1751100641361,-572.55559778,0.00020273,2]
[368298939,1751100641370,-314.17372,0.00020273,2]
[368298940,1751100641379,-151.0,0.00020273,2]
[368298941,1751100641389,-461.77,0.00020273,2]
[368298942,1751100641398,-314.17372,0.00020273,2]
[368298943,1751100641407,-3084.43,0.00020273,2]
[368298944,1751100641416,-279.163928,0.00020273,2]
[368298945,1751100641425,-151.0,0.00020273,2]
[368298946,1751100641434,-2476.82,0.00020273,2]
[368298947,1751100641444,-481.09073413,0.00020273,2]
[368298948,1751100641453,-151.0,0.00020273,2]
[368298949,1751100641463,-1223.39,0.00020273,2]
[368298950,1751100641472,-460.0,0.00020273,2]
[368298951,1751100641482,-739.08,0.00020273,2]
[368298952,1751100641491,-656.69,0.00020273,2]
[368298953,1751100641501,-360.239536,0.00020273,2]
[368298954,1751100641510,-2386.21,0.00020273,2]
[368298955,1751100641519,-746.77,0.00020273,2]
[368298956,1751100641528,-360.239536,0.00020273,2]
[368298957,1751100641539,-460.0,0.00020273,2]
[368298958,1751100641549,-460.0,0.00020273,2]
[368298959,1751100641559,-738.23,0.00020273,2]
[368298960,1751100641569,-460.0,0.00020273,2]
[368298961,1751100641577,-460.0,0.00020273,2]
[368298962,1751100641587,-460.0,0.00020273,2]
[368298963,1751100641597,-563.92,0.00020273,2]
[368298964,1751100641607,-503.69,0.00020273,2]
[368298965,1751100641617,-711.07,0.00020273,2]
[368298966,1751100641627,-868.94,0.00020273,2]
[368298967,1751100641639,-151.0,0.00020273,2]
[368298968,1751100641648,-3105.15,0.00020273,2]
[368298969,1751100641658,-151.0,0.00020273,2]
[368298970,1751100641667,-518.0,0.00020273,2]
[368298971,1751100641678,-556.19,0.00020273,2]
[368298972,1751100641688,-151.0,0.00020273,2]
[368298973,1751100641699,-460.0,0.00020273,2]
[368298974,1751100641710,-1208.1,0.00020273,2]
[368298975,1751100641720,-153.963297,0.00020273,2]
[368298976,1751100641734,-3835.4,0.00020273,2]
[368298977,1751100641743,-460.0,0.00020273,2]
[368298978,1751100641754,-3094.67,0.00020273,2]
[368298979,1751100641764,-460.0,0.00020273,2]
[368298980,1751100641775,-151.0,0.00020273,2]
[368298981,1751100641784,-460.0,0.00020273,2]
[368298982,1751100641793,-750.08,0.00020273,2]
[368298983,1751100641802,-2380.9,0.00020273,2]
[368298984,1751100641813,-460.0,0.00020273,2]
[368298985,1751100641822,-590.21,0.00020273,2]
[368298986,1751100641831,-4278.54,0.00020273,2]
[368298987,1751100641840,-569.58,0.00020273,2]
[368298988,1751100641850,-587.62,0.00020273,2]
[368298989,1751100641859,-2589.18,0.00020273,2]
[368298990,1751100641868,-189.652664,0.00020273,2]
[368298991,1751100641877,-460.0,0.00020273,2]
[368298992,1751100641886,-1943.91,0.00020273,2]
[368298993,1751100641895,-151.0,0.00020273,2]
[368298994,1751100641905,-460.0,0.00020273,2]
[368298995,1751100641914,-189.652664,0.00020273,2]
[368298996,1751100642011,-518.96,0.00020273,2]